bitfinex/quotes_BTCUSD_20241124
["timestamp","ask_amount","ask_price","bid_price","bid_amount"]
[1732484701299,0.22391427,96760.0,96759.0,0.0017118]
[1732484701538,0.22391427,96760.0,96759.0,0.2343908]
[1732484701744,0.22581097,96760.0,96759.0,0.2343908]
[1732484701954,0.22581097,96760.0,96759.0,0.1517118]
[1732484702379,0.22581097,96760.0,96759.0,0.38336759]
[1732484702736,0.22581097,96760.0,96759.0,0.0017118]
[1732484702954,0.22581097,96760.0,96759.0,0.33704048]
[1732484703386,0.41377693,96760.0,96759.0,0.0017118]
[1732484704481,0.41377693,96760.0,96759.0,0.0843908]
[1732484704935,0.41377693,96760.0,96759.0,0.0017118]
[1732484707121,0.41377693,96760.0,96759.0,0.0843908]
[1732484707554,0.41377693,96760.0,96759.0,0.0017118]
[1732484709781,0.41377693,96760.0,96759.0,0.0843908]
[1732484711885,0.22581097,96760.0,96759.0,0.0843908]
[1732484712095,0.41377693,96760.0,96759.0,0.0843908]
[1732484714918,0.41463283,96760.0,96759.0,0.0843908]
[1732484716307,0.41463283,96760.0,96759.0,0.08236717]
[1732484716494,0.29273283,96760.0,96755.0,0.15]
[1732484716749,0.131,96759.0,96758.0,0.08268]
[1732484716996,0.23490864,96759.0,96758.0,0.08268]
[1732484717223,0.18796596,96750.0,96749.0,0.13879895]
[1732484717476,0.18796596,96750.0,96747.0,0.18506527]
[1732484717477,0.18796596,96748.0,96747.0,0.13879895]
[1732484717694,0.18796596,96748.0,96746.0,0.08269]
[1732484717695,0.18796596,96747.0,96746.0,0.08269]
[1732484717908,0.28998023,96747.0,96746.0,0.08269]
[1732484718124,0.23756596,96746.0,96745.0,0.082691]
[1732484718349,0.42098023,96746.0,96745.0,0.082691]
[1732484718572,0.18796596,96745.0,96744.0,0.082692]
[1732484718796,0.28998023,96745.0,96744.0,0.082692]
[1732484719015,0.29186262,96745.0,96744.0,0.082692]
[1732484719446,0.23756596,96743.0,96742.0,0.082693]
[1732484720158,0.23756596,96743.0,96741.0,0.03559566]
[1732484720159,0.18796596,96742.0,96741.0,0.0017122]
[1732484720369,0.48495427,96742.0,96741.0,0.0017122]
[1732484735747,0.48495427,96742.0,96741.0,0.0947432]
[1732484736189,0.48308023,96742.0,96741.0,0.0947432]
[1732484736431,0.48494858,96742.0,96741.0,0.0947432]
[1732484737096,0.48494858,96742.0,96741.0,0.0017122]
[1732484756879,0.48494858,96742.0,96741.0,0.0947432]
[1732484756880,0.18983431,96742.0,96741.0,0.0947432]
[1732484757530,0.18983431,96742.0,96741.0,0.2447432]
[1732484758384,0.18983431,96742.0,96741.0,0.42994432]
[1732484758602,0.18796596,96742.0,96741.0,0.2447432]
[1732484758815,0.18983112,96742.0,96741.0,0.2447432]
[1732484760328,0.18983112,96742.0,96741.0,0.47624461]
[1732484760547,0.18983112,96742.0,96741.0,0.2447432]
[1732484760977,0.00186516,96742.0,96741.0,0.3670432]
[1732484761333,0.18796596,96748.0,96747.0,0.093026]
[1732484761646,0.18796596,96748.0,96747.0,0.243026]
[1732484762993,0.18796596,96751.0,96750.0,0.093023]
[1732484764948,0.18985176,96751.0,96750.0,0.093023]
[1732484768280,0.18985176,96751.0,96750.0,0.3245112]
[1732484768985,0.18985176,96751.0,96750.0,0.093023]
[1732484769641,0.18985176,96751.0,96750.0,0.1264468]
[1732484770757,0.18985176,96751.0,96750.0,0.35785798]
[1732484771861,0.18985176,96751.0,96750.0,0.1264468]
[1732484772547,0.18985176,96751.0,96749.0,0.18509361]
[1732484772548,0.18796596,96750.0,96749.0,0.18509361]
[1732484772777,0.18796596,96750.0,96743.0,0.18509361]
[1732484772778,0.18796596,96744.0,96743.0,0.18509361]
[1732484773005,0.18796596,96742.0,96741.0,0.1517122]
[1732484773443,0.18985022,96742.0,96741.0,0.2447432]
[1732484773874,0.18985022,96742.0,96741.0,0.1517122]
[1732484774345,0.18985022,96742.0,96741.0,0.0017122]
[1732484774553,0.18985022,96742.0,96741.0,0.2447432]
[1732484774988,0.53683149,96742.0,96741.0,0.0017122]
[1732484775227,0.43346449,96742.0,96741.0,0.0017122]
[1732484775503,0.53683149,96742.0,96741.0,0.0017122]
[1732484775711,0.43346449,96742.0,96741.0,0.0017122]
[1732484775921,0.53683149,96742.0,96741.0,0.0017122]
[1732484783751,0.58323149,96742.0,96741.0,0.0017122]
[1732484784829,0.60623149,96742.0,96741.0,0.0017122]
[1732484785248,0.80623149,96742.0,96741.0,0.0017122]
[1732484785462,0.80823149,96742.0,96741.0,0.0017122]
[1732484785916,0.80623149,96742.0,96741.0,0.0017122]
[1732484811968,0.75983149,96742.0,96741.0,0.0017122]
[1732484812187,0.65733149,96742.0,96741.0,0.0017122]
[1732484812416,0.35396449,96742.0,96741.0,0.0017122]
[1732484813540,0.55396449,96742.0,96741.0,0.0017122]
[1732484813761,0.65733149,96742.0,96741.0,0.0017122]
[1732484814860,0.45733149,96742.0,96741.0,0.0017122]
[1732484815074,0.35396449,96742.0,96741.0,0.0017122]
[1732484816197,0.45733149,96742.0,96741.0,0.0017122]
[1732484818189,0.65733149,96742.0,96741.0,0.0017122]
[1732484818416,0.45733149,96742.0,96741.0,0.0017122]
[1732484818638,0.65733149,96742.0,96741.0,0.0017122]
[1732484819757,0.55396449,96742.0,96741.0,0.0017122]
[1732484820125,0.65733149,96742.0,96741.0,0.0017122]
[1732484820332,0.55396449,96742.0,96741.0,0.0017122]
[1732484821399,0.65733149,96742.0,96741.0,0.0017122]
[1732484822891,0.35396449,96742.0,96741.0,0.0017122]
[1732484823326,0.55396449,96742.0,96741.0,0.0017122]
[1732484825540,0.35396449,96742.0,96741.0,0.0017122]
[1732484826377,0.29186449,96742.0,96741.0,0.0947432]
[1732484831996,0.29186449,96742.0,96741.0,0.0017122]
[1732484833258,0.29186449,96742.0,96741.0,0.0947432]
[1732484834098,0.29186449,96742.0,96741.0,0.0017122]
[1732484834704,0.29186449,96742.0,96741.0,0.0947432]
[1732484836740,0.29186449,96742.0,96741.0,0.0017122]
[1732484839571,0.45733149,96742.0,96741.0,0.0017122]
[1732484839797,0.60913149,96742.0,96741.0,0.0017122]
[1732484847815,0.80913149,96742.0,96741.0,0.0017122]
[1732484850670,0.70913149,96742.0,96741.0,0.0017122]
[1732484850886,0.71089082,96742.0,96741.0,0.0017122]
[1732484855281,0.45572382,96742.0,96741.0,0.0017122]
[1732484855507,0.25572382,96742.0,96741.0,0.0947432]
[1732484855734,0.25572382,96742.0,96741.0,0.0017122]
[1732484856878,0.45572382,96742.0,96741.0,0.0017122]
[1732484858238,0.25572382,96742.0,96741.0,0.0017122]
[1732484859116,0.35909082,96742.0,96741.0,0.0017122]
[1732484859307,0.36110509,96742.0,96741.0,0.0017122]
[1732484859535,0.36239403,96742.0,96741.0,0.0017122]
[1732484860414,0.25902703,96742.0,96741.0,0.0017122]
[1732484863598,0.25902703,96742.0,96741.0,0.0947432]
[1732484863799,0.25902703,96742.0,96741.0,0.0017122]
[1732484864714,0.22902703,96742.0,96741.0,0.0017122]
[1732484865140,0.22988363,96742.0,96741.0,0.0017122]
[1732484867155,0.12988363,96742.0,96741.0,0.0017122]
[1732484872512,0.12988363,96742.0,96741.0,0.0947432]
[1732484874700,0.12988363,96742.0,96741.0,0.0017122]
[1732484877819,0.12988363,96742.0,96741.0,0.0947432]
[1732484881148,0.02786936,96742.0,96741.0,0.0947432]
[1732484881419,0.00214554,96742.0,96741.0,0.1420432]
[1732484881614,0.02658042,96742.0,96741.0,0.1420432]
[1732484882466,0.0008566,96742.0,96741.0,0.45327297]
[1732484882676,0.02658042,96742.0,96741.0,0.17532241]
[1732484883073,0.0008564,96759.0,96758.0,0.093015]
[1732484883714,0.0008564,96759.0,96758.0,0.27831497]
[1732484883857,0.0008564,96759.0,96758.0,0.093015]
[1732484885882,0.0008564,96759.0,96758.0,0.12725547]
[1732484888290,0.0008564,96759.0,96758.0,0.093015]
[1732484888501,0.0008564,96759.0,96754.0,0.093018]
[1732484888915,0.0012572,96758.0,96756.0,0.093017]
[1732484889130,0.0012572,96758.0,96754.0,0.093018]
[1732484889289,0.0012572,96758.0,96755.0,0.093017]
[1732484889492,0.0012572,96758.0,96754.0,0.093018]
[1732484889493,0.0008564,96759.0,96757.0,0.093016]
[1732484889697,0.0012572,96757.0,96754.0,0.093018]
[1732484889938,0.0008564,96759.0,96754.0,0.093018]
[1732484889939,0.0008564,96759.0,96756.0,0.093017]
[1732484890146,0.0008564,96759.0,96754.0,0.093018]
[1732484890314,0.0012572,96758.0,96754.0,0.093019]
[1732484890496,0.0012572,96758.0,96757.0,0.093016]
[1732484890699,0.0008564,96759.0,96756.0,0.093017]
[1732484891169,0.0012572,96758.0,96756.0,0.093017]
[1732484891379,0.0012572,96758.0,96757.0,0.093016]
[1732484891808,0.0008564,96759.0,96758.0,0.093015]
[1732484892222,0.0021136,96759.0,96758.0,0.093015]
[1732484899018,0.0008564,96759.0,96758.0,0.093015]
[1732484900146,0.1162146,96777.0,96772.0,0.093002]
[1732484900359,0.10201427,96776.0,96773.0,0.093]
[1732484900587,0.10201427,96776.0,96773.0,0.093001]
[1732484900807,0.10201427,96776.0,96772.0,0.093001]
[1732484901233,0.10201427,96776.0,96775.0,0.092999]
[1732484903695,0.0256705,96786.0,96772.0,0.03291945]
[1732484903696,0.0256705,96786.0,96785.0,0.092989]
[1732484903931,0.12768477,96786.0,96785.0,0.092989]
[1732484908445,0.12768477,96786.0,96782.0,0.092992]
[1732484908648,0.12768477,96786.0,96785.0,0.092989]
[1732484910238,0.12768477,96786.0,96773.0,0.093]
[1732484910801,0.12768477,96786.0,96785.0,0.092989]
[1732484911711,0.12768477,96786.0,96783.0,0.092991]
[1732484911924,0.1162146,96784.0,96783.0,0.092991]
[1732484912373,0.12768477,96786.0,96783.0,0.092991]
[1732484912584,0.1162146,96784.0,96783.0,0.092991]
[1732484913450,0.12854137,96786.0,96783.0,0.092991]
[1732484913635,0.1162146,96785.0,96782.0,0.092992]
[1732484914123,0.12854137,96786.0,96777.0,0.092997]
[1732484914351,0.12854137,96786.0,96775.0,0.05666115]
[1732484914352,0.12854137,96786.0,96784.0,0.09299]
[1732484914583,0.12854137,96786.0,96781.0,0.092992]
[1732484914790,0.12854137,96786.0,96781.0,0.185984]
[1732484914992,0.00127486,96785.0,96781.0,0.185984]
[1732484915241,0.00127486,96785.0,96782.0,0.092991]
[1732484915743,0.00127486,96785.0,96783.0,0.092991]
[1732484915973,0.00127486,96785.0,96781.0,0.092992]
[1732484916188,0.12854137,96786.0,96775.0,0.05666115]
[1732484916189,0.0265271,96786.0,96775.0,0.05666115]
[1732484916404,0.0265271,96786.0,96785.0,0.092989]
[1732484920992,0.0565271,96786.0,96785.0,0.092989]
[1732484924327,0.03,96786.0,96785.0,0.122989]
[1732484925220,0.03,96799.0,96785.0,0.122989]
[1732484925451,0.03,96797.0,96796.0,0.122979]
[1732484925711,0.13201427,96797.0,96796.0,0.122979]
[1732484926126,0.13329096,96797.0,96796.0,0.122979]
[1732484935655,0.13329096,96797.0,96796.0,0.03]
[1732484935908,0.13329096,96797.0,96796.0,0.122979]
[1732484936559,0.13329096,96797.0,96796.0,0.124691]
[1732484936560,0.00127669,96797.0,96796.0,0.124691]
[1732484936781,0.03,96797.0,96796.0,0.124691]
[1732484936986,0.03127989,96797.0,96796.0,0.124691]
[1732484937628,0.00127989,96797.0,96796.0,0.124691]
[1732484938064,0.03,96801.0,96796.0,0.124691]
[1732484938290,0.00127989,96797.0,96796.0,0.124691]
[1732484938505,0.03,96799.0,96796.0,0.124691]
[1732484938729,0.00127989,96797.0,96796.0,0.124691]
[1732484938945,0.00127989,96798.0,96797.0,0.03]
[1732484939176,0.03,96799.0,96797.0,0.03]
[1732484939402,0.00128068,96798.0,96797.0,0.03]
[1732484940720,0.07658068,96798.0,96797.0,0.03]
[1732484943404,0.03128068,96798.0,96797.0,0.03]
[1732484944366,0.00128068,96798.0,96797.0,0.03]
[1732484945062,0.13458768,96798.0,96797.0,0.03]
[1732484945299,0.38490195,96798.0,96797.0,0.03]
[1732484945751,0.49911655,96798.0,96797.0,0.03]
[1732484946208,0.49911655,96798.0,96797.0,0.028]
[1732484947006,0.53187815,96798.0,96797.0,0.028]
[1732484947226,0.2445226,96797.0,96796.0,0.001712]
[1732484947437,0.47593687,96797.0,96796.0,0.001712]
[1732484947644,0.47721134,96797.0,96796.0,0.001712]
[1732484957757,0.45421134,96797.0,96796.0,0.001712]
[1732484958844,0.28449674,96797.0,96796.0,0.001712]
[1732484959767,0.37271134,96797.0,96796.0,0.001712]
[1732484959998,0.28449674,96797.0,96796.0,0.001712]
[1732484960219,0.37271134,96797.0,96796.0,0.001712]
[1732484960437,0.28449674,96797.0,96796.0,0.001712]
[1732484961294,0.23659674,96797.0,96796.0,0.001712]
[1732484962165,0.32481134,96797.0,96796.0,0.001712]
[1732484963328,0.23659674,96797.0,96796.0,0.001712]
[1732484963539,0.23745284,96797.0,96796.0,0.001712]
[1732484964644,0.13414484,96797.0,96796.0,0.001712]
[1732484964861,0.23745284,96797.0,96796.0,0.001712]
[1732484967167,0.28535284,96797.0,96796.0,0.001712]
[1732484967808,0.38545284,96797.0,96796.0,0.001712]
[1732484970623,0.38545284,96797.0,96796.0,0.031712]
[1732484980916,0.38545284,96797.0,96796.0,0.001712]
[1732484981568,0.30835284,96797.0,96796.0,0.001712]
[1732484982900,0.26045284,96797.0,96796.0,0.001712]
[1732484984643,0.30915284,96797.0,96796.0,0.001712]
[1732484994087,0.23215284,96797.0,96796.0,0.001712]
[1732484997717,0.18345284,96797.0,96796.0,0.001712]
[1732485005159,0.14801427,96797.0,96796.0,0.001712]
[1732485005420,0.25255496,96797.0,96796.0,0.001712]
[1732485006261,0.29985496,96797.0,96796.0,0.001712]
[1732485007170,0.25255496,96797.0,96796.0,0.001712]
[1732485010246,0.25341106,96797.0,96796.0,0.001712]
[1732485016663,0.23041106,96797.0,96796.0,0.001712]
[1732485017116,0.12710306,96797.0,96796.0,0.001712]
[1732485017538,0.23041106,96797.0,96796.0,0.001712]
[1732485018472,0.12710306,96797.0,96796.0,0.001712]
[1732485018908,0.23041106,96797.0,96796.0,0.001712]
[1732485019121,0.02508879,96797.0,96796.0,0.001712]
[1732485019344,0.02508879,96797.0,96796.0,0.124691]
[1732485020473,0.0238561,96797.0,96796.0,0.126691]
[1732485020725,0.0238561,96797.0,96796.0,0.248191]
[1732485029922,0.0238561,96797.0,96796.0,0.246191]
[1732485030142,0.0238561,96797.0,96796.0,0.248191]
[1732485030582,0.0008561,96797.0,96796.0,0.248191]
[1732485030791,0.0238561,96797.0,96796.0,0.248191]
[1732485036694,0.0238561,96797.0,96796.0,0.246191]
[1732485036904,0.0238561,96797.0,96796.0,0.248191]
[1732485039772,0.0238561,96797.0,96796.0,0.258191]
[1732485042116,0.0008561,96797.0,96796.0,0.258191]
[1732485055124,0.0008561,96797.0,96796.0,0.212491]
[1732485059425,0.0008561,96797.0,96796.0,0.041712]
[1732485059689,0.1271641,96797.0,96796.0,0.041712]
[1732485059908,0.1221641,96797.0,96796.0,0.041712]
[1732485060177,0.12432648,96797.0,96796.0,0.041712]
[1732485063781,0.34854075,96797.0,96796.0,0.041712]
[1732485066440,0.34939735,96797.0,96796.0,0.041712]
[1732485066623,0.34939735,96797.0,96796.0,0.051672]
[1732485067576,0.02187508,96797.0,96796.0,0.051672]
[1732485068205,0.12518308,96797.0,96796.0,0.051672]
[1732485068901,0.02187508,96797.0,96796.0,0.051672]
[1732485070232,0.0197127,96797.0,96796.0,0.144651]
[1732485070441,0.02187462,96797.0,96796.0,0.144651]
[1732485070922,0.0197127,96797.0,96796.0,0.144651]
[1732485071359,0.0197127,96797.0,96796.0,0.146651]
[1732485072261,0.0008566,96797.0,96796.0,0.146651]
[1732485074920,0.0197127,96797.0,96796.0,0.051672]
[1732485075131,0.12518664,96797.0,96796.0,0.051672]
[1732485076031,0.22720091,96797.0,96796.0,0.051672]
[1732485076252,0.30240091,96797.0,96796.0,0.051672]
[1732485076477,0.35040091,96797.0,96796.0,0.051672]
[1732485076917,0.46161551,96797.0,96796.0,0.051672]
[1732485077140,0.81161551,96797.0,96796.0,0.051672]
[1732485078058,0.61161551,96797.0,96796.0,0.051672]
[1732485078273,0.81161551,96797.0,96796.0,0.051672]
[1732485078711,0.61161551,96797.0,96796.0,0.051672]
[1732485078927,0.81161551,96797.0,96796.0,0.051672]
[1732485082002,0.72340091,96797.0,96796.0,0.051672]
[1732485082228,0.81161551,96797.0,96796.0,0.051672]
[1732485083144,0.83211815,96797.0,96796.0,0.051672]
[1732485083559,0.83211815,96797.0,96796.0,0.046672]
[1732485086715,0.63211815,96797.0,96796.0,0.046672]
[1732485086942,0.35040091,96797.0,96796.0,0.046672]
[1732485087150,0.22720091,96797.0,96796.0,0.046672]
[1732485088722,0.25020091,96797.0,96796.0,0.046672]
[1732485088969,0.22720091,96797.0,96796.0,0.046672]
[1732485089207,0.02187864,96797.0,96796.0,0.141651]
[1732485089457,0.02187864,96797.0,96796.0,0.1433642]
[1732485089679,0.0197127,96797.0,96796.0,0.1433642]
[1732485089898,0.0197127,96797.0,96796.0,0.1413642]
[1732485092401,0.0197127,96797.0,96796.0,0.1433642]
[1732485093995,0.206599,96806.0,96799.0,0.002]
[1732485094214,0.20531427,96805.0,96798.0,0.026712]
[1732485094401,0.20746641,96805.0,96798.0,0.026712]
[1732485094891,0.10416641,96805.0,96798.0,0.119688]
[1732485095112,0.10416641,96805.0,96800.0,0.026712]
[1732485095356,0.10416641,96805.0,96802.0,0.026712]
[1732485095575,0.10416641,96805.0,96804.0,0.026712]
[1732485096053,0.10416641,96805.0,96804.0,0.119683]
[1732485096054,0.00215214,96805.0,96804.0,0.119683]
[1732485096519,0.0008565,96812.0,96801.0,0.092973]
[1732485096520,0.0008565,96812.0,96806.0,0.026712]
[1732485096739,0.0008565,96812.0,96807.0,0.11968]
[1732485096957,0.00365645,96808.0,96807.0,0.026712]
[1732485097189,0.0015,96808.0,96807.0,0.026712]
[1732485097703,0.00365645,96808.0,96807.0,0.026712]
[1732485097927,0.0015,96808.0,96807.0,0.11968]
[1732485098152,0.0015,96808.0,96807.0,0.026712]
[1732485098373,0.0015,96808.0,96807.0,0.11968]
[1732485098592,0.00365645,96808.0,96807.0,0.11968]
[1732485098813,0.0015,96808.0,96807.0,0.11968]
[1732485100637,0.0015,96808.0,96807.0,0.026712]
[1732485100864,0.0023566,96808.0,96807.0,0.026712]
[1732485101770,0.0023566,96808.0,96807.0,0.11968]
[1732485103324,0.0045151,96808.0,96807.0,0.11968]
[1732485103548,0.0023566,96808.0,96807.0,0.11968]
[1732485104868,0.0023566,96808.0,96807.0,0.12168]
[1732485108535,0.0023566,96808.0,96807.0,0.026712]
[1732485108799,0.00452473,96808.0,96807.0,0.026712]
[1732485109015,0.10782173,96808.0,96807.0,0.026712]
[1732485109870,0.00452473,96808.0,96807.0,0.026712]
[1732485110723,0.10782173,96808.0,96807.0,0.026712]
[1732485112421,0.00452473,96808.0,96807.0,0.026712]
[1732485113108,0.00332821,96808.0,96807.0,0.026712]
[1732485114166,0.10662521,96808.0,96807.0,0.026712]
[1732485114638,0.00332821,96808.0,96807.0,0.026712]
[1732485118137,0.10662521,96808.0,96807.0,0.026712]
[1732485122315,0.41523548,96808.0,96807.0,0.026712]
[1732485122536,0.49093548,96808.0,96807.0,0.026712]
[1732485123196,0.41523548,96808.0,96807.0,0.026712]
[1732485126250,0.10534248,96808.0,96807.0,0.026712]
[1732485126905,0.00332821,96808.0,96807.0,0.026712]
[1732485127833,0.00116008,96808.0,96807.0,0.12168]
[1732485128060,0.00332875,96808.0,96807.0,0.12168]
[1732485128342,0.00116008,96808.0,96807.0,0.026712]
[1732485128766,0.00333045,96808.0,96807.0,0.028712]
[1732485130038,0.00116008,96808.0,96807.0,0.028712]
[1732485130683,0.00333045,96808.0,96807.0,0.028712]
[1732485130911,0.00116008,96808.0,96807.0,0.028712]
[1732485131142,0.00333045,96808.0,96807.0,0.028712]
[1732485132477,0.00333045,96808.0,96807.0,0.026712]
[1732485132688,0.10662745,96808.0,96807.0,0.026712]
[1732485132895,0.00333045,96808.0,96807.0,0.026712]
[1732485133318,0.00116008,96808.0,96807.0,0.026712]
[1732485133787,0.00333045,96808.0,96807.0,0.026712]
[1732485134017,0.00116008,96808.0,96807.0,0.026712]
[1732485134226,0.00333045,96808.0,96807.0,0.026712]
[1732485134470,0.00116008,96808.0,96807.0,0.026712]
[1732485134691,0.00333045,96808.0,96807.0,0.026712]
[1732485134925,0.00116008,96808.0,96807.0,0.026712]
[1732485135378,0.00333045,96808.0,96807.0,0.026712]
[1732485135594,0.00116008,96808.0,96807.0,0.026712]
[1732485135811,0.00333045,96808.0,96807.0,0.026712]
[1732485136024,0.00116008,96808.0,96807.0,0.026712]
[1732485136234,0.00333045,96808.0,96807.0,0.028425]
[1732485136457,0.00116008,96808.0,96807.0,0.001713]
[1732485136661,0.00333045,96808.0,96807.0,0.001713]
[1732485136882,0.00116008,96808.0,96807.0,0.001713]
[1732485137107,0.00333045,96808.0,96807.0,0.001713]
[1732485138876,0.10662745,96808.0,96807.0,0.001713]
[1732485139128,0.00333045,96808.0,96807.0,0.001713]
[1732485139329,0.00116008,96808.0,96807.0,0.001713]
[1732485139536,0.00333045,96808.0,96807.0,0.001713]
[1732485139757,0.10662745,96808.0,96807.0,0.001713]
[1732485141105,0.00333045,96808.0,96807.0,0.028425]
[1732485141552,0.27964172,96808.0,96807.0,0.028425]
[1732485142931,0.35594172,96808.0,96807.0,0.028425]
[1732485143138,0.33294172,96808.0,96807.0,0.028425]
[1732485146250,0.33294172,96808.0,96807.0,0.001713]
[1732485151667,0.23536793,96808.0,96807.0,0.001713]
[1732485156338,0.15906793,96808.0,96807.0,0.001713]
[1732485159738,0.15877933,96808.0,96807.0,0.001713]
[1732485160389,0.15963583,96808.0,96807.0,0.001713]
[1732485166887,0.61293583,96808.0,96807.0,0.001713]
[1732485172585,0.38993583,96808.0,96807.0,0.001713]
[1732485172769,0.11163583,96808.0,96807.0,0.001713]
[1732485173001,0.11103823,96808.0,96807.0,0.001713]
[1732485181281,0.11103823,96808.0,96807.0,0.028425]
[1732485182298,0.00774123,96808.0,96807.0,0.028425]
[1732485182505,0.00531502,96808.0,96807.0,0.028425]
[1732485182710,0.00764762,96808.0,96807.0,0.028425]
[1732485183332,0.0031891,96808.0,96807.0,0.123393]
[1732485183557,0.0031891,96808.0,96807.0,0.3595784]
[1732485183784,0.0008565,96808.0,96807.0,0.3595784]
[1732485184841,0.0008565,96808.0,96807.0,0.3575784]
[1732485185104,0.0008565,96808.0,96807.0,0.3595784]
[1732485201199,0.0008565,96808.0,96807.0,0.3575784]
[1732485201419,0.0008565,96808.0,96807.0,0.61159267]
[1732485202295,0.0008565,96808.0,96807.0,0.61019267]
[1732485202536,0.0008565,96808.0,96807.0,0.79427052]
[1732485202763,0.0008565,96808.0,96807.0,0.61019267]
[1732485216168,0.0008565,96808.0,96807.0,0.4622784]
[1732485217348,0.0008565,96808.0,96807.0,0.64627818]
[1732485217595,0.0008565,96808.0,96807.0,0.4622784]
[1732485217813,0.0008565,96808.0,96807.0,0.3837784]
[1732485218487,0.0008565,96808.0,96807.0,0.2337784]
[1732485220026,0.00319754,96808.0,96807.0,0.2337784]
[1732485220937,0.0008565,96808.0,96807.0,0.2337784]
[1732485221390,0.00319754,96808.0,96807.0,0.2337784]
[1732485221607,0.0008565,96808.0,96807.0,0.2337784]
[1732485222044,0.0008565,96812.0,96811.0,0.2334614]
[1732485228035,0.0008565,96812.0,96811.0,0.41782196]
[1732485228486,0.0008565,96812.0,96811.0,0.2334614]
[1732485228926,0.0008565,96812.0,96811.0,0.4638479]
[1732485229362,0.0008565,96812.0,96811.0,0.2334614]
[1732485230018,0.0008565,96812.0,96811.0,0.4638479]
[1732485231366,0.0008565,96812.0,96811.0,0.2334614]
[1732485232428,0.0008565,96812.0,96811.0,0.4618479]
[1732485232634,0.0008565,96812.0,96811.0,0.4638479]
[1732485233089,0.0008565,96812.0,96811.0,0.2334614]
[1732485233318,0.0008565,96812.0,96811.0,0.50992521]
[1732485234436,0.0008565,96812.0,96811.0,0.2334614]
[1732485237007,0.0710705,96827.0,96824.0,0.1404974]
[1732485237229,0.0710705,96827.0,96824.0,0.2334494]
[1732485239436,0.0256705,96827.0,96824.0,0.2334494]
[1732485240714,0.0256705,96827.0,96824.0,0.41782394]
[1732485240928,0.0256705,96827.0,96824.0,0.2334494]
[1732485241374,0.0256705,96827.0,96824.0,0.41780927]
[1732485241616,0.0256705,96827.0,96824.0,0.2334494]
[1732485242258,0.0256705,96827.0,96824.0,0.41780005]
[1732485242486,0.0256705,96827.0,96824.0,0.2334494]
[1732485243157,0.0256705,96827.0,96824.0,0.41779579]
[1732485244230,0.0256705,96827.0,96824.0,0.41779202]
[1732485244455,0.0256705,96827.0,96824.0,0.2334494]
[1732485245605,0.0256705,96827.0,96824.0,0.46388578]
[1732485245816,0.0256705,96827.0,96824.0,0.56666367]
[1732485246023,0.0256705,96827.0,96824.0,0.61586367]
[1732485251293,0.0256705,96827.0,96824.0,0.89163908]
[1732485251937,0.004009,96830.0,96824.0,0.79868708]
[1732485252156,0.004009,96830.0,96829.0,0.50146311]
[1732485252374,0.004009,96830.0,96829.0,0.3834444]
[1732485252622,0.004009,96830.0,96829.0,0.61324851]
[1732485253111,0.004009,96830.0,96829.0,0.3834444]
[1732485253316,0.004009,96830.0,96829.0,0.61324851]
[1732485253517,0.004009,96830.0,96829.0,0.3834444]
[1732485253947,0.004009,96830.0,96829.0,0.61324851]
[1732485255271,0.004009,96830.0,96829.0,0.79026278]
[1732485255750,0.004009,96830.0,96829.0,0.56045867]
[1732485256421,0.004009,96830.0,96829.0,0.79014463]
[1732485256643,0.004009,96830.0,96829.0,0.56045867]
[1732485257996,0.004009,96830.0,96829.0,0.79014369]
[1732485258214,0.004009,96830.0,96829.0,0.79009351]
[1732485259080,0.004009,96830.0,96829.0,0.7900853]
[1732485260623,0.004009,96830.0,96829.0,0.56045867]
[1732485261498,0.004009,96830.0,96829.0,0.74412904]
[1732485262168,0.004009,96830.0,96829.0,0.56045867]
[1732485262831,0.004009,96830.0,96829.0,0.74412451]
[1732485263262,0.0048656,96830.0,96829.0,0.56045867]
[1732485263679,0.0048656,96830.0,96829.0,0.74410445]
[1732485266724,0.0048656,96830.0,96829.0,0.56045867]
[1732485267147,0.0008562,96836.0,96835.0,0.094941]
[1732485267359,0.0008562,96836.0,96835.0,0.2334384]
[1732485267991,0.0008562,96836.0,96835.0,0.33545267]
[1732485268280,0.0008562,96836.0,96835.0,0.38075267]
[1732485269086,0.0008562,96836.0,96835.0,0.53075267]
[1732485269311,0.103238,96864.0,96835.0,0.53075267]
[1732485269312,0.0481,96872.0,96855.0,0.2334194]
[1732485269555,0.05955706,96867.0,96855.0,0.2334194]
[1732485269781,0.0481,96858.0,96855.0,0.2334194]
[1732485269991,0.0481,96858.0,96855.0,0.026712]
[1732485270213,0.0032253,96856.0,96855.0,0.1384974]
[1732485270441,0.0008566,96856.0,96855.0,0.2314194]
[1732485270656,0.0032253,96856.0,96855.0,0.2314194]
[1732485270914,0.0008566,96856.0,96855.0,0.2314194]
[1732485271106,0.00375898,96856.0,96855.0,0.2314194]
[1732485271333,0.0008566,96856.0,96855.0,0.2334194]
[1732485271548,0.00375898,96856.0,96855.0,0.2334194]
[1732485271768,0.0008566,96856.0,96855.0,0.2334194]
[1732485271982,0.00375898,96856.0,96855.0,0.2334194]
[1732485272235,0.0008566,96856.0,96855.0,0.2334194]
[1732485272456,0.00375898,96856.0,96855.0,0.2334194]
[1732485273120,0.0008566,96856.0,96855.0,0.2334194]
[1732485273496,0.0007566,96856.0,96855.0,0.2334194]
[1732485274485,0.0007566,96856.0,96855.0,0.26717851]
[1732485275332,0.0007566,96856.0,96855.0,0.36919278]
[1732485276173,0.0007566,96856.0,96855.0,0.26717851]
[1732485285819,0.0007566,96856.0,96855.0,0.36919278]
[1732485286035,0.0007566,96856.0,96855.0,0.59849278]
[1732485286470,0.0007566,96856.0,96855.0,0.82786856]
[1732485286719,0.0007566,96856.0,96855.0,1.07286856]
[1732485286937,0.0007566,96856.0,96855.0,0.84349278]
[1732485287147,0.0007566,96856.0,96855.0,0.64349278]
[1732485295350,0.0007566,96856.0,96855.0,0.64449278]
[1732485295572,0.0007566,96856.0,96855.0,0.64549278]
[1732485297114,0.0007566,96856.0,96855.0,0.64349278]
[1732485299805,0.0007566,96856.0,96855.0,0.64549278]
[1732485300325,0.0007566,96856.0,96855.0,0.51919278]
[1732485301212,0.0466,96865.0,96861.0,0.2334134]
[1732485301431,0.0466,96865.0,96861.0,0.3834134]
[1732485301877,0.0466,96865.0,96861.0,0.3814134]
[1732485302093,0.0932421,96862.0,96861.0,0.3834134]
[1732485302314,0.0145421,96862.0,96861.0,0.3834134]
[1732485309442,0.0145421,96862.0,96861.0,0.56686578]
[1732485310356,0.0145421,96862.0,96861.0,0.3834134]
[1732485312205,0.0635421,96862.0,96861.0,0.3834134]
[1732485312418,0.0643983,96862.0,96861.0,0.3834134]